bitfinex-derivatives/quotes_SOLF0:USTF0_20250923
["timestamp","ask_amount","ask_price","bid_price","bid_amount"]
[1758652545225,7.09,216.88,216.78,5.52379062]
[1758652545525,7.09,216.88,216.79,7.61]
[1758652546321,7.09,216.88,216.8,1.65077661]
[1758652547029,7.09,216.88,216.81,4.1494]
[1758652548226,7.09,216.88,216.79,15.63281401]
[1758652548726,7.09,216.88,216.8,4.1496]
[1758652551116,11.2383,216.88,216.79,11.48301401]
[1758652551926,11.2383,216.88,216.79,15.63281401]
[1758652552829,7.09,216.88,216.8,4.1496]
[1758652553226,7.09,216.88,216.8,8.02261401]
[1758652553431,7.09,216.88,216.8,3.87301401]
[1758652553623,7.09,216.88,216.78,1.65077661]
[1758652553624,7.09,216.88,216.81,11.08301401]
[1758652553928,7.09,216.88,216.81,7.21]
[1758652554831,7.09,216.88,216.82,4.1491]
[1758652556734,7.09,216.88,216.81,11.08595094]
[1758652557927,1.15294096,216.87,216.81,15.23535094]
[1758652558124,7.09,216.88,216.81,15.23535094]
[1758652558435,7.37,216.93,216.86,11.3584]
[1758652558635,1.15289933,216.92,216.86,11.3584]
[1758652558933,7.37,216.9,216.84,5.79967661]
[1758652559129,1.15289933,216.89,216.84,4.1489]
[1758652559329,7.37,216.88,216.84,4.1489]
[1758652559531,1.65077661,216.93,216.83,11.08595094]
[1758652559729,7.37,216.89,216.83,3.87595094]
[1758652559922,7.37,216.89,216.82,8.02515094]
[1758652560434,7.37,216.89,216.83,3.87595094]
[1758652561531,7.37,216.89,216.83,8.02495094]
[1758652562229,7.37,216.93,216.87,11.3582]
[1758652562429,7.37,216.93,216.87,7.21]
[1758652562632,75.80509081,216.97,216.9,7.21]
[1758652562827,75.80509081,216.97,216.9,8.86077661]
[1758652563033,75.80509081,216.97,216.9,1.65077661]
[1758652563635,7.37,216.97,216.9,8.86077661]
[1758652563834,7.37,217.01,216.9,8.86077661]
[1758652565036,7.37,216.99,216.91,4.1475]
[1758652565238,7.37,216.96,216.87,3.87595094]
[1758652565423,7.37,216.96,216.82,7.7076981]
[1758652565424,7.37,216.93,216.84,3.87595094]
[1758652565626,7.37,216.9,216.82,7.21]
[1758652566233,1.15292486,216.89,216.82,7.21]
[1758652566430,1.15292486,216.88,216.82,7.21]
[1758652566631,8.52292486,216.87,216.82,7.21]
[1758652566828,7.37,216.87,216.82,7.21]
[1758652567037,7.37,216.89,216.81,3.87595094]
[1758652567338,7.37,216.89,216.8,8.02565094]
[1758652567339,1.15293339,216.88,216.8,8.02565094]
[1758652567542,1.15293339,216.87,216.81,7.21]
[1758652567735,1.15293339,216.86,216.8,15.23565094]
[1758652567938,7.37,216.89,216.8,15.23565094]
[1758652568133,1.15299649,216.88,216.8,15.23565094]
[1758652568334,1.15299649,216.87,216.8,15.23565094]
[1758652568636,8.52299649,216.86,216.79,5.52672755]
[1758652568837,1.15299649,216.85,216.79,1.65077661]
[1758652569542,1.15299649,216.85,216.79,11.08595094]
[1758652570438,1.15299649,216.85,216.79,7.21]
[1758652571136,1.15299649,216.85,216.79,11.08595094]
[1758652572742,7.37,216.86,216.79,11.08595094]
[1758652572937,7.37,216.86,216.81,11.4594]
[1758652573134,7.62,216.88,216.81,7.31]
[1758652573351,1.15302814,216.87,216.81,7.31]
[1758652573642,7.62,216.85,216.81,7.31]
[1758652574340,1.15307079,216.84,216.77,15.33615094]
[1758652574541,1.15307079,216.83,216.77,11.18595094]
[1758652574741,1.15307079,216.83,216.76,3.87595094]
[1758652575335,11.7693,216.82,216.75,3.87595094]
[1758652575636,7.62,216.88,216.77,1.65077661]
[1758652575838,1.15332392,216.87,216.8,8.96077661]
[1758652576043,1.15332392,216.86,216.8,8.96077661]
[1758652576238,1.15332392,216.85,216.81,7.31]
[1758652576439,1.15332392,216.84,216.8,5.80027661]
[1758652576639,1.15332392,216.83,216.8,4.1495]
[1758652576839,7.62,216.88,216.81,7.31]
[1758652577044,1.15319846,216.87,216.81,7.31]
[1758652577244,1.15319846,216.86,216.81,4.1494]
[1758652577447,1.15319846,216.85,216.82,7.31]
[1758652577646,1.15319846,216.84,216.82,7.31]
[1758652577845,1.15319846,216.83,216.82,7.31]
[1758652578646,1.15319846,216.83,216.79,4.1499]
[1758652578847,7.62,216.88,216.79,4.1499]
[1758652579048,7.62,216.86,216.79,4.1499]
[1758652579355,1.15321429,216.85,216.79,4.1499]
[1758652579745,1.15321429,216.85,216.77,11.4602]
[1758652580047,1.15321429,216.85,216.77,7.31]
[1758652580247,7.62,216.84,216.77,7.31]
[1758652580450,5.30241429,216.83,216.75,4.1506]
[1758652580648,1.15321429,216.82,216.75,4.1506]
[1758652581349,1.15321429,216.82,216.73,11.461]
[1758652582051,7.62,216.81,216.73,7.31]
[1758652582252,1.15351089,216.8,216.73,7.31]
[1758652582551,1.15351089,216.79,216.73,7.31]
[1758652582851,8.77351089,216.78,216.73,7.31]
[1758652583044,7.62,216.78,216.73,7.31]
[1758652583446,7.62,216.78,216.69,7.07]
[1758652583843,7.43,216.84,216.69,64.5838]
[1758652584045,116.31350395,216.83,216.71,7.07]
[1758652584352,1.15350395,216.82,216.72,7.07]
[1758652584551,1.15350395,216.81,216.72,7.07]
[1758652584751,1.15350395,216.8,216.75,4.1505]
[1758652585054,132.95683103,216.83,216.76,7.07]
[1758652585257,1.15346259,216.82,216.76,7.07]
[1758652585554,7.43,216.8,216.76,7.07]
[1758652585854,7.43,216.81,216.73,4.151]
[1758652586049,1.15344685,216.8,216.73,4.151]
[1758652586250,7.43,216.81,216.72,7.07]
[1758652586456,115.16,216.84,216.77,4.1502]
[1758652586655,1.15332813,216.83,216.77,4.1502]
[1758652586849,8.58332813,216.82,216.77,11.2202]
[1758652587050,7.43,216.82,216.77,7.07]
[1758652587250,7.43,216.83,216.77,7.07]
[1758652587560,1.15339109,216.82,216.74,7.07]
[1758652587753,1.15339109,216.81,216.74,7.07]
[1758652587953,11.5793,216.83,216.74,7.07]
[1758652588254,1.15340683,216.82,216.74,7.07]
[1758652588557,1.15340683,216.81,216.74,7.07]
[1758652588752,7.43,216.83,216.76,4.1503]
[1758652588954,1.15340683,216.82,216.76,4.1503]
[1758652589260,8.58339109,216.81,216.76,7.07]
[1758652589557,7.43,216.81,216.76,7.07]
[1758652590358,7.43,216.81,216.75,4.1505]
[1758652590557,7.43,216.81,216.75,7.07]
[1758652591856,7.43,216.81,216.76,4.1503]
[1758652592060,13.50873754,216.84,216.75,7.07]
[1758652592361,8.14840242,216.85,216.76,7.07]
[1758652592557,1.15327077,216.84,216.76,7.07]
[1758652592757,8.14840242,216.85,216.76,7.07]
[1758652592956,1.15327065,216.84,216.76,7.07]
[1758652593154,7.43,216.81,216.76,7.07]
[1758652593359,11.5794,216.82,216.76,7.07]
[1758652593560,1.15339109,216.81,216.71,7.07]
[1758652593760,7.43,216.82,216.71,7.07]
[1758652593961,1.15340816,216.81,216.71,7.07]
[1758652594161,7.43,216.82,216.71,7.07]
[1758652594366,1.15340816,216.81,216.71,7.07]
[1758652594658,7.43,216.82,216.71,7.07]
[1758652594862,1.15343964,216.81,216.71,7.07]
[1758652595061,4.1496,216.81,216.74,4.1507]
[1758652596159,7.43,216.82,216.72,4.1512]
[1758652596360,7.43,216.8,216.72,4.1512]
[1758652596568,8.58343964,216.79,216.71,7.07]
[1758652596864,1.15343964,216.78,216.71,7.07]
[1758652597064,7.43,216.79,216.71,7.07]
[1758652597666,7.43,216.79,216.73,4.1509]
[1758652598258,4.1494,216.82,216.71,7.07]
[1758652598461,1.15351969,216.81,216.73,7.07]
[1758652598662,7.43,216.84,216.73,71.6411]
[1758652598970,1.15342257,216.83,216.74,7.07]
[1758652599166,7.43,216.84,216.74,7.07]
[1758652599368,1.15334254,216.83,216.74,7.07]
[1758652599570,11.579,216.84,216.74,7.07]
[1758652599765,1.15334254,216.83,216.74,7.07]
[1758652599968,4.1493,216.83,216.74,7.07]
[1758652600669,4.1493,216.83,216.75,4.1505]
[1758652600870,4.1493,216.83,216.74,7.07]
[1758652601371,4.1493,216.83,216.76,4.1503]
[1758652601772,7.43,216.84,216.76,4.1503]
[1758652601976,1.1533196,216.83,216.76,4.1503]
[1758652602273,7.43,216.84,216.76,4.1503]
[1758652602473,1.1533196,216.83,216.76,4.1503]
[1758652602673,7.43,216.84,216.74,7.07]
[1758652602978,7.43,216.82,216.74,7.07]
[1758652603164,1.15333666,216.81,216.74,7.07]
[1758652604979,4.1498,216.8,216.74,7.07]
[1758652607976,7.43,216.82,216.69,3.87595094]
[1758652607977,4.1501,216.78,216.69,8.02765094]
[1758652608174,7.43,216.77,216.69,7.07]
[1758652608380,7.43,216.75,216.65,7.07]
[1758652608680,7.43,216.73,216.65,7.07]
[1758652609279,1.15375912,216.72,216.62,7.07]
[1758652609482,7.43,216.73,216.62,7.07]
[1758652609783,1.15381382,216.72,216.62,7.07]
[1758652609982,7.43,216.73,216.62,7.07]
[1758652610283,5.30511382,216.72,216.63,4.1528]
[1758652610484,4.1513,216.72,216.63,4.1528]
[1758652610977,7.43,216.73,216.64,7.07]
[1758652611175,1.15381382,216.72,216.64,7.07]
[1758652611380,7.43,216.76,216.64,7.07]
[1758652611581,1.15380528,216.75,216.64,7.07]
[1758652611782,1.15380528,216.74,216.64,7.07]
[1758652611970,1.15380528,216.73,216.64,7.07]
[1758652612282,11.5805,216.76,216.67,4.152]
[1758652612581,1.15377926,216.75,216.67,11.222]
[1758652612775,1.15377926,216.74,216.67,7.07]
[1758652612981,4.15,216.79,216.67,7.07]
[1758652613176,1.15360349,216.78,216.67,7.07]
[1758652613376,1.15360349,216.77,216.67,7.07]
[1758652613685,1.15360349,216.76,216.69,7.0]
[1758652613881,7.43,216.8,216.7,7.0]
[1758652614074,1.15349194,216.79,216.7,7.0]
[1758652614384,1.15349194,216.78,216.7,7.0]
[1758652614683,7.43,216.8,216.7,7.0]
[1758652614985,1.15352348,216.79,216.72,4.1512]
[1758652615182,7.43,216.8,216.72,4.1512]
[1758652615183,1.15352348,216.78,216.72,4.1512]
[1758652615379,7.43,216.8,216.72,4.1512]
[1758652615580,1.15352348,216.79,216.72,4.1512]
[1758652615780,1.15352348,216.78,216.72,4.1512]
[1758652615981,7.43,216.8,216.72,4.1512]
[1758652616278,1.15352339,216.79,216.72,9.58094748]
[1758652616483,7.12,216.85,216.73,7.0]
[1758652616680,1.15339396,216.84,216.73,7.0]
[1758652616886,1.15339396,216.83,216.73,7.0]
[1758652617083,1.15339396,216.82,216.77,4.1501]
[1758652617280,1.15339396,216.81,216.77,4.1501]
[1758652617585,7.12,216.85,216.78,7.0]
[1758652617786,1.15326804,216.84,216.78,7.0]
[1758652617987,8.27326804,216.83,216.78,7.0]
[1758652618289,66.91596348,216.87,216.76,9.58094748]
[1758652618585,1.15327383,216.86,216.77,7.0]
[1758652618786,1.15327383,216.85,216.77,7.0]
[1758652619087,1.15327346,216.84,216.77,7.0]
[1758652619286,1.15327346,216.83,216.77,7.0]
[1758652619490,21.25596348,216.87,216.77,7.0]
[1758652619679,1.15320996,216.86,216.77,7.0]
[1758652619881,1.15320996,216.85,216.77,7.0]
[1758652620189,1.15320996,216.85,216.76,2.58094748]
[1758652620190,1.15320996,216.84,216.81,7.0]
[1758652620375,114.88,216.89,216.81,7.0]
[1758652620376,1.15320996,216.83,216.81,7.0]
[1758652620689,20.66923858,216.9,216.83,7.0]
[1758652620883,1.15309821,216.89,216.83,7.0]
[1758652621185,1.15309821,216.88,216.81,7.0]
[1758652621385,1.15309821,216.87,216.81,7.0]
[1758652621584,1.15309821,216.86,216.8,2.58094748]
[1758652621780,20.66923858,216.9,216.8,2.58094748]
[1758652622082,1.15309839,216.89,216.81,7.0]
[1758652622289,348.72,216.92,216.82,7.0]
[1758652622478,1.15299042,216.91,216.84,2.58094748]
[1758652622680,1.15299042,216.9,216.86,7.0]
[1758652622887,7.12,216.94,216.86,7.0]
[1758652623287,7.12,216.99,216.89,7.0]
[1758652623882,7.12,216.99,216.91,4.1476]
[1758652624186,7.12,216.99,216.87,64.5302]
[1758652624187,0.68748686,217.02,216.92,2.58094748]
[1758652624389,0.68748686,217.02,216.93,7.0]
[1758652624583,14.45858666,217.02,216.93,11.1472]
[1758652625588,0.68748686,217.02,216.93,11.1472]
[1758652626580,115.06,217.03,216.96,7.0]
[1758652626889,115.06,217.03,216.96,9.58094748]
[1758652627290,348.8,217.05,216.97,4.1464]
[1758652627688,7.12,217.07,216.98,7.0]
[1758652627890,7.12,217.07,216.99,4.146]
[1758652628084,7.12,217.07,216.98,7.0]
[1758652628685,7.12,217.07,216.98,11.1462]
[1758652628891,7.12,217.07,216.98,7.0]
[1758652629088,115.02,217.09,217.0,4.1458]
[1758652629288,115.02,217.09,217.01,7.0]
[1758652631282,7.12,217.08,216.97,7.0]
[1758652632288,7.12,217.08,216.97,2.58094748]
[1758652632492,7.12,217.08,216.98,7.73]
[1758652632992,7.12,217.08,216.98,11.8762]
[1758652633393,4.1445,217.07,216.98,7.73]
[1758652633985,4.1449,217.05,216.98,7.73]
[1758652634891,7.12,217.08,216.98,7.73]
[1758652634892,11.2645,217.08,216.98,7.73]
[1758652635092,11.2645,217.08,216.98,11.8762]
[1758652635894,11.2645,217.08,216.99,4.1459]
[1758652637085,413.1185,217.18,216.99,2.58094748]
[1758652637287,64.4457,217.16,217.01,7.73]
[1758652637485,7.18,217.15,217.01,7.73]
[1758652637882,11.3231,217.15,217.05,7.73]
[1758652638194,7.18,217.15,217.05,7.73]
[1758652638590,7.18,217.15,217.06,1.64774707]
[1758652639491,7.18,217.15,217.09,1.64774707]
[1758652642099,7.18,217.17,217.09,1.64774707]
[1758652642494,8.82774707,217.17,217.08,7.73]
[1758652642897,12.97054707,217.17,217.08,7.73]
[1758652643798,7.33,217.15,217.08,7.73]
[1758652645101,7.33,217.15,217.09,4.1441]
[1758652645489,348.68,217.18,217.11,5.79144707]
[1758652647200,348.68,217.18,217.11,1.64774707]
[1758652647402,7.33,217.17,217.11,1.64774707]
[1758652647802,352.8226,217.18,217.11,9.14774707]
[1758652649104,7.33,217.17,217.11,9.14774707]
[1758652649298,352.8226,217.18,217.09,4.1441]
[1758652649299,7.33,217.16,217.09,4.1441]
[1758652649503,7.33,217.16,217.07,1.64774707]
[1758652649907,7.33,217.16,217.08,7.5]
[1758652650202,7.33,217.16,217.1,1.64774707]
[1758652650395,114.9,217.19,217.1,1.64774707]
[1758652650594,7.33,217.2,217.13,1.64774707]
[1758652650804,118.57,217.2,217.13,1.64774707]
[1758652653805,4.1423,217.19,217.13,1.64774707]
[1758652654601,4.1425,217.18,217.13,1.64774707]
[1758652654905,7.33,217.17,216.97,64.5005]
[1758652655097,7.33,217.17,217.09,1.64774707]
[1758652655710,7.33,217.17,217.07,1.64774707]
[1758652656002,8.97774707,217.17,217.07,1.64774707]
[1758652656905,4.143,217.15,217.07,1.64774707]
[1758652657105,11.473,217.15,217.07,1.64774707]
[1758652657306,7.33,217.15,217.09,9.14774707]
[1758652658003,7.33,217.15,217.09,1.64774707]
[1758652658604,7.33,217.15,217.09,9.14774707]
[1758652658805,7.33,217.15,217.11,9.14774707]
[1758652659006,112.88774707,217.2,217.11,1.64774707]
[1758652659203,11.4723,217.19,217.11,1.64774707]
[1758652659603,11.4723,217.19,217.12,4.1436]
[1758652660210,11.4723,217.19,217.11,1.64774707]
[1758652660400,11.4723,217.19,217.1,11.6439]
[1758652660605,4.1425,217.18,217.12,1.64774707]
[1758652660804,7.33,217.19,217.1,7.5]
[1758652661008,8.97774707,217.19,217.08,4.1443]
[1758652661310,4.1425,217.18,217.09,1.64774707]
[1758652661608,7.33,217.19,217.11,1.64774707]
[1758652662209,8.97774707,217.19,217.09,1.64774707]
[1758652662609,8.97774707,217.19,217.1,7.5]
[1758652662804,8.97774707,217.19,217.11,1.64774707]
[1758652662805,4.1427,217.17,217.11,1.64774707]
[1758652663116,1.64774707,217.18,217.08,1.64774707]
[1758652663308,7.33,217.17,217.08,1.64774707]
[1758652663614,7.33,217.17,217.08,9.14774707]
[1758652664015,4.143,217.16,217.09,4.1441]
[1758652664315,4.143,217.16,217.1,1.64774707]
[1758652664511,7.33,217.17,217.1,1.64774707]
[1758652665317,7.33,217.17,217.1,5.79154707]
[1758652666915,7.33,217.17,217.08,11.6443]
[1758652667120,11.4728,217.17,217.09,1.64774707]
[1758652667522,7.33,217.17,217.09,1.64774707]
[1758652668124,7.33,217.17,217.09,5.79174707]
[1758652669321,4.1431,217.15,217.08,7.5]
[1758652669527,7.33,217.14,217.07,1.64774707]
[1758652670124,7.33,217.14,217.08,7.5]
[1758652671723,7.33,217.14,217.03,7.5]
[1758652671923,7.33,217.14,217.05,1.64774707]
[1758652672125,8.97774707,217.14,217.03,9.14774707]
[1758652672529,4.1441,217.1,217.03,9.14774707]
[1758652672727,7.33,217.11,217.05,1.64774707]
[1758652673329,7.33,217.11,217.05,5.79254707]
[1758652673521,7.33,217.11,217.05,1.64774707]
[1758652673829,7.33,217.11,217.05,8.81774707]
[1758652674032,7.33,217.11,217.06,4.1446]
[1758652674235,11.3931,217.15,217.06,7.17]
[1758652674731,11.3931,217.15,217.06,11.3147]
[1758652675430,7.25,217.15,217.06,7.17]
[1758652676632,4.1433,217.14,217.06,7.17]
[1758652677035,7.25,217.15,217.1,4.1438]
[1758652677225,4.1428,217.17,217.08,1.64774707]
[1758652677226,1.64774707,217.17,217.08,1.64774707]
[1758652677432,7.25,217.16,217.06,7.17]
[1758652678324,11.3935,217.13,217.06,7.17]
[1758652678523,7.25,217.13,217.06,7.17]
[1758652679830,4.1437,217.12,217.06,7.17]
[1758652680328,7.25,217.09,217.05,1.64774707]
[1758652680526,7.25,217.09,217.02,7.17]
[1758652680731,7.25,217.09,217.02,8.81774707]
[1758652681131,7.25,217.09,217.02,1.64774707]
[1758652681327,1.64774707,217.08,216.99,1.64774707]
[1758652681527,7.25,217.07,216.98,7.17]
[1758652682839,4.1452,217.04,216.98,7.17]
[1758652683025,11.3952,217.04,216.96,1.64774707]
[1758652683728,7.25,217.01,216.95,1.64774707]
[1758652684035,7.25,217.01,216.93,1.64774707]
[1758652684240,7.25,217.01,216.92,3.87129661]
[1758652684531,8.89774707,217.02,216.91,1.64774707]
[1758652684832,8.89774707,217.02,216.84,72.2470981]
[1758652684833,1.64774707,217.02,216.88,11.04129661]
[1758652685130,4.1459,217.0,216.9,1.64774707]
[1758652685336,7.25,216.99,216.9,1.64774707]
[1758652685832,4.1463,216.98,216.9,1.64774707]
[1758652686226,4.1463,216.98,216.88,15.18939661]
[1758652686227,7.25,216.96,216.88,8.81774707]
[1758652686930,1.64774707,216.99,216.88,8.81774707]
[1758652686931,4.1468,216.95,216.88,8.81774707]
[1758652687127,7.25,216.94,216.88,8.81774707]
[1758652688738,7.25,216.94,216.86,1.64774707]
[1758652688939,11.3971,216.94,216.86,1.64774707]
[1758652689137,7.25,216.94,216.86,8.81774707]
[1758652689336,4.1461,216.99,216.88,4.1481]
[1758652689541,7.25,216.98,216.9,1.64774707]
[1758652690436,7.25,216.98,216.93,1.64774707]
[1758652690634,7.25,217.0,216.93,1.64774707]
[1758652692444,7.25,217.0,216.93,13.02494707]
[1758652693137,7.25,217.0,216.93,8.87774707]
[1758652694540,7.88517736,217.04,216.96,1.64774707]
[1758652695339,7.88517736,217.04,216.96,8.87774707]
[1758652695633,7.21,217.02,216.96,1.64774707]
[1758652695836,7.21,217.02,216.93,1.64774707]
[1758652696342,7.21,216.98,216.93,1.64774707]
[1758652696537,7.21,216.98,216.85,114.84]
[1758652696538,8.85774707,216.98,216.9,1.64774707]
[1758652696734,8.85774707,216.98,216.86,7.23]
[1758652696735,4.1468,216.95,216.87,1.64774707]
[1758652697241,4.1465,216.97,216.87,1.64774707]
[1758652697543,4.1465,216.97,216.88,7.23]
[1758652698044,7.21,216.96,216.88,7.23]
[1758652700648,11.3568,216.96,216.88,7.23]
[1758652701046,4.147,216.95,216.88,7.23]
[1758652702035,7.21,216.93,216.84,13.95799716]
[1758652703640,11.3574,216.93,216.84,13.95799716]
[1758652703841,11.3574,216.93,216.85,7.36]
[1758652704147,4.1474,216.93,216.86,7.36]
[1758652704343,7.33,217.03,216.89,7.36]
[1758652704846,4.1462,216.99,216.9,4.1477]
[1758652705149,4.1462,216.99,216.91,7.36]
[1758652706046,7.33,217.0,216.91,11.5074]
[1758652706444,7.33,217.0,216.91,7.36]
[1758652706750,7.33,216.96,216.87,7.36]
[1758652707245,11.4766,216.96,216.87,7.36]
[1758652708240,7.33,216.96,216.87,7.36]
[1758652709845,4.1472,216.93,216.87,7.36]
[1758652713354,7.33,216.94,216.87,7.36]
[1758652714148,71.8389,216.95,216.82,7.36]
[1758652715254,11.4774,216.92,216.82,11.5092]
[1758652715956,4.1477,216.91,216.82,11.5092]
[1758652716157,4.1477,216.91,216.82,7.36]
[1758652716669,4.1479,216.9,216.82,7.36]
[1758652718754,76.86,216.98,216.85,2.57909716]
[1758652719056,7.33,216.99,216.86,7.36]
[1758652719258,7.33,216.99,216.88,11.508]
[1758652719555,7.33,216.99,216.88,7.36]
[1758652720160,4.1464,216.98,216.9,4.1476]
[1758652722760,4.1464,216.97,216.9,4.1476]
[1758652722963,7.33,216.99,216.9,4.1476]
[1758652723854,7.33,217.01,216.88,11.508]
[1758652724151,7.33,217.01,216.88,7.36]
[1758652724556,4.1464,216.97,216.88,7.36]
[1758652724757,11.4764,216.97,216.88,7.36]
[1758652724955,11.4764,216.97,216.88,11.23129661]
[1758652725759,4.1467,216.95,216.88,11.508]
[1758652726059,7.33,216.96,216.85,7.36]
[1758652726562,7.33,216.94,216.82,8.02039661]
[1758652726861,7.33,216.94,216.82,4.1491]
[1758652727165,122.15,216.94,216.82,4.1491]
[1758652727861,7.33,216.89,216.82,4.1491]
[1758652728262,7.33,216.89,216.82,8.02039661]
[1758652728463,11.478,216.89,216.81,11.23129661]
[1758652728661,11.478,216.89,216.81,7.36]
[1758652728858,7.33,216.89,216.8,3.87129661]
[1758652729061,4.1488,216.85,216.79,3.87129661]
[1758652729268,4.1488,216.85,216.77,7.36]
[1758652729269,11.4788,216.85,216.78,3.87129661]
[1758652729767,11.4788,216.85,216.77,7.36]
[1758652729964,11.4788,216.85,216.78,3.86812057]
[1758652730360,11.4788,216.85,216.77,11.22812057]
[1758652731272,11.4788,216.85,216.77,7.36]
[1758652740173,7.33,216.85,216.77,7.36]
[1758652741168,7.33,216.85,216.78,4.1498]
[1758652743475,7.33,216.85,216.75,4.1503]
[1758652743676,4.1501,216.78,216.71,3.85912036]
[1758652743976,7.22,216.81,216.69,7.35]
[1758652744285,7.22,216.81,216.7,4.1513]
[1758652744979,7.22,216.91,216.76,7.35]
[1758652745179,64.514,216.92,216.76,7.35]
[1758652745180,7.22,216.89,216.76,7.35]
[1758652745687,7.22,216.86,216.76,7.35]
[1758652746181,4.1487,216.85,216.77,4.15]
[1758652746374,7.22,216.84,216.77,4.15]
[1758652746571,7.22,216.84,216.76,7.35]
[1758652746771,4.149,216.83,216.76,7.35]
[1758652747176,7.22,216.82,216.76,7.35]
[1758652747375,11.3694,216.82,216.73,9.92909716]
[1758652748085,4.1495,216.81,216.73,14.07989716]
[1758652748483,4.1495,216.81,216.69,3.85912036]
[1758652748484,71.7588,216.84,216.69,6.43821752]
[1758652748689,4.1499,216.79,216.69,14.08069716]
[1758652748981,2.57909716,216.85,216.7,7.35]
[1758652748982,7.22,216.78,216.7,7.35]
[1758652749283,7.22,216.78,216.71,4.1512]
[1758652750986,7.22,216.78,216.72,4.1509]
[1758652751183,7.22,216.78,216.7,7.35]
[1758652752189,7.22,216.78,216.72,4.1511]
[1758652753791,6.97,216.85,216.7,7.28]
[1758652754083,64.5053,216.95,216.77,64.5568]
[1758652754291,6.97,216.9,216.83,4.1489]
[1758652754586,14.13400829,216.9,216.76,7.28]
[1758652754786,6.97,216.89,216.76,7.28]
[1758652754981,6.97,216.89,216.77,4.1501]
[1758652755181,4.149,216.84,216.77,4.1501]
[1758652755786,6.97,216.85,216.78,4.1498]
[1758652756591,11.1187,216.85,216.78,4.1498]
[1758652756886,6.97,216.85,216.72,3.85912036]
[1758652757092,6.97,216.85,216.71,7.28]
[1758652757093,4.1497,216.8,216.71,7.28]
[1758652757278,6.97,216.79,216.71,7.28]
[1758652757792,11.1199,216.79,216.71,7.28]
[1758652758285,6.97,216.79,216.71,7.28]
[1758652758493,6.97,216.77,216.65,7.28]
[1758652758883,6.97,216.75,216.65,7.28]
[1758652759492,6.97,216.73,216.61,7.28]
[1758652760093,11.1215,216.7,216.61,7.28]
[1758652760791,6.97,216.7,216.62,4.153]
[1758652760991,6.97,216.7,216.63,7.28]
[1758652762587,6.97,216.7,216.63,8.93440942]
[1758652764398,6.97,216.7,216.63,7.28]
[1758652765190,66.23420942,216.7,216.58,9.01440942]
[1758652765793,7.06,216.69,216.58,9.01440942]
[1758652765999,4.1522,216.66,216.58,9.01440942]
[1758652766200,7.06,216.69,216.58,9.01440942]
[1758652766800,11.2118,216.69,216.58,13.16800942]
[1758652767093,7.06,216.69,216.58,7.36]
[1758652767293,7.06,216.69,216.6,1.65440942]
[1758652767499,8.71440942,216.69,216.59,1.65440942]
[1758652767700,4.1519,216.68,216.59,5.80800942]
[1758652768204,8.71440942,216.69,216.59,5.80800942]
[1758652768501,4.1522,216.67,216.59,1.65440942]
[1758652770398,7.06,216.68,216.58,7.36]
[1758652770905,71.6461,216.68,216.58,7.36]
[1758652771101,7.06,216.65,216.58,7.36]
[1758652771795,4.153,216.63,216.58,7.36]
[1758652771995,7.06,216.62,216.58,7.36]